[Event "Titled Tuesday Blitz August 15 Early 2023"]
[White "Eynullayev, Atilla"]
[Black "Bacrot, Etienne"]
[WhiteFideId "13413570"]
[BlackFideId "605506"]
[WhiteElo "2635"]
[BlackElo "2865"]
[Result "0-1"]
[Round "5"]
[TimeControl "180+1"]
[Date "2023.08.15"]
[WhiteClock "0:00:02"]
[BlackClock "0:00:07"]
[Board "39"]

1. d4 {[%clk 0:03:00]}  Nf6 {[%clk 0:02:59]} 2. c4 {[%clk 0:03:01]}  e6 {[%clk 0:02:59]} 3. Nc3 {[%clk 0:03:01]}  Bb4 {[%clk 0:02:59]} 4. e3 {[%clk 0:03:02]}  O-O {[%clk 0:02:58]} 5. Bd3 {[%clk 0:03:02]}  d5 {[%clk 0:02:58]} 6. a3 {[%clk 0:03:03]}  Bxc3+ {[%clk 0:02:58]} 7. bxc3 {[%clk 0:03:04]}  b6 {[%clk 0:02:58]} 8. cxd5 {[%clk 0:03:01]}  exd5 {[%clk 0:02:58]} 9. Ne2 {[%clk 0:03:01]}  Ba6 {[%clk 0:02:58]} 10. Bc2 {[%clk 0:02:37]}  Ne4 {[%clk 0:02:50]} 11. O-O {[%clk 0:02:37]}  Re8 {[%clk 0:02:41]} 12. f3 {[%clk 0:02:15]}  Nd6 {[%clk 0:02:41]} 13. Rf2 {[%clk 0:02:10]}  Nd7 {[%clk 0:02:41]} 14. Ng3 {[%clk 0:02:07]}  Nf6 {[%clk 0:02:25]} 15. a4 {[%clk 0:01:23]}  Bc4 {[%clk 0:02:02]} 16. Bb1 {[%clk 0:01:21]}  Re6 {[%clk 0:01:58]} 17. Qc2 {[%clk 0:01:20]}  g6 {[%clk 0:01:33]} 18. Bd2 {[%clk 0:01:04]}  Qd7 {[%clk 0:01:16]} 19. Qd1 {[%clk 0:00:58]}  Rae8 {[%clk 0:01:16]} 20. a5 {[%clk 0:00:30]}  b5 {[%clk 0:01:15]} 21. Bc2 {[%clk 0:00:26]}  a6 {[%clk 0:01:14]} 22. Qc1 {[%clk 0:00:25]}  h5 {[%clk 0:01:12]} 23. h3 {[%clk 0:00:20]}  Qc6 {[%clk 0:01:09]} 24. Qb2 {[%clk 0:00:20]}  R8e7 {[%clk 0:01:05]} 25. Re1 {[%clk 0:00:20]}  h4 {[%clk 0:01:02]} 26. Nh1 {[%clk 0:00:20]}  Nh5 {[%clk 0:01:02]} 27. Qb1 {[%clk 0:00:20]}  Qe8 {[%clk 0:00:51]} 28. Bc1 {[%clk 0:00:20]}  Nf4 {[%clk 0:00:44]} 29. Kh2 {[%clk 0:00:12]}  Nh5 {[%clk 0:00:40]} 30. Rd1 {[%clk 0:00:05]}  Rxe3 {[%clk 0:00:34]} 31. Bxe3 {[%clk 0:00:05]}  Rxe3 {[%clk 0:00:35]} 32. Rdd2 {[%clk 0:00:05]}  Qe7 {[%clk 0:00:22]} 33. Bd3 {[%clk 0:00:05]}  Nf4 {[%clk 0:00:08]} 34. Bxc4 {[%clk 0:00:04]}  Nxc4 {[%clk 0:00:08]} 35. Rc2 {[%clk 0:00:05]}  Nd3 {[%clk 0:00:07]} 36. Rf1 {[%clk 0:00:04]}  Qd6+ {[%clk 0:00:06]} 37. Kg1 {[%clk 0:00:04]}  Qf4 {[%clk 0:00:06]} 38. Ra2 {[%clk 0:00:03]}  Qg5 {[%clk 0:00:06]} 39. Qd1 {[%clk 0:00:03]}  Nf4 {[%clk 0:00:06]} 40. Rff2 {[%clk 0:00:03]}  Re6 {[%clk 0:00:06]} 41. Kf1 {[%clk 0:00:03]}  Ne3+ {[%clk 0:00:07]} 42. Kg1 {[%clk 0:00:02]}  Nxd1 {[%clk 0:00:07]} 0-1


[Site "https://www.chess.com"]

[Event "Titled Tuesday Blitz August 15 Early 2023"]
[White "Kuzhilniy, Oleksandr"]
[Black "Bernadskiy, Vitaliy"]
[WhiteFideId "34110500"]
[BlackFideId "14100371"]
[WhiteElo "2631"]
[BlackElo "2857"]
[Result "0-1"]
[Round "5"]
[TimeControl "180+1"]
[Date "2023.08.15"]
[WhiteClock "0:00:00"]
[BlackClock "0:00:42"]
[Board "41"]

1. e4 {[%clk 0:03:00]}  c6 {[%clk 0:02:58]} 2. d4 {[%clk 0:03:00]}  d5 {[%clk 0:02:59]} 3. exd5 {[%clk 0:03:01]}  Nf6 {[%clk 0:02:59]} 4. Bd3 {[%clk 0:02:57]}  Qxd5 {[%clk 0:02:56]} 5. Nf3 {[%clk 0:02:50]}  Bg4 {[%clk 0:02:56]} 6. Nc3 {[%clk 0:02:49]}  Qd8 {[%clk 0:02:46]} 7. Be3 {[%clk 0:02:45]}  e6 {[%clk 0:02:45]} 8. h3 {[%clk 0:02:44]}  Bh5 {[%clk 0:02:44]} 9. g4 {[%clk 0:02:44]}  Bg6 {[%clk 0:02:43]} 10. Ne5 {[%clk 0:02:44]}  Bb4 {[%clk 0:02:37]} 11. Nxg6 {[%clk 0:02:33]}  hxg6 {[%clk 0:02:36]} 12. Qf3 {[%clk 0:02:32]}  Qd5 {[%clk 0:02:34]} 13. Qxd5 {[%clk 0:02:29]}  cxd5 {[%clk 0:02:26]} 14. Ke2 {[%clk 0:02:19]}  Bxc3 {[%clk 0:02:18]} 15. bxc3 {[%clk 0:02:19]}  Nc6 {[%clk 0:02:19]} 16. c4 {[%clk 0:02:09]}  dxc4 {[%clk 0:02:19]} 17. Bxc4 {[%clk 0:02:10]}  Kd7 {[%clk 0:02:16]} 18. Bb3 {[%clk 0:01:55]}  a5 {[%clk 0:02:08]} 19. Ba4 {[%clk 0:01:52]}  Nd5 {[%clk 0:02:08]} 20. Kd2 {[%clk 0:01:42]}  Rhc8 {[%clk 0:01:40]} 21. Rab1 {[%clk 0:01:41]}  Rc7 {[%clk 0:01:40]} 22. c4 {[%clk 0:01:36]}  Nxe3 {[%clk 0:01:39]} 23. fxe3 {[%clk 0:01:35]}  Ke7 {[%clk 0:01:32]} 24. a3 {[%clk 0:01:15]}  Rd8 {[%clk 0:01:25]} 25. Bxc6 {[%clk 0:01:10]}  bxc6 {[%clk 0:01:24]} 26. Kc3 {[%clk 0:01:11]}  c5 {[%clk 0:01:19]} 27. Rb5 {[%clk 0:01:10]}  Rdc8 {[%clk 0:01:19]} 28. d5 {[%clk 0:00:52]}  exd5 {[%clk 0:01:16]} 29. cxd5 {[%clk 0:00:53]}  Kd6 {[%clk 0:01:17]} 30. Kc4 {[%clk 0:00:49]}  Re8 {[%clk 0:01:16]} 31. Rb6+ {[%clk 0:00:50]}  Kd7 {[%clk 0:01:16]} 32. d6 {[%clk 0:00:29]}  Rc6 {[%clk 0:01:09]} 33. Rb7+ {[%clk 0:00:29]}  Kxd6 {[%clk 0:01:09]} 34. Rxf7 {[%clk 0:00:30]}  Re4+ {[%clk 0:00:59]} 35. Kd3 {[%clk 0:00:29]}  Ra4 {[%clk 0:01:00]} 36. Rxg7 {[%clk 0:00:28]}  c4+ {[%clk 0:01:00]} 37. Kc2 {[%clk 0:00:26]}  Kc5 {[%clk 0:00:57]} 38. Ra1 {[%clk 0:00:24]}  Kd5 {[%clk 0:00:49]} 39. h4 {[%clk 0:00:19]}  c3 {[%clk 0:00:43]} 40. h5 {[%clk 0:00:17]}  Rxg4 {[%clk 0:00:42]} 41. Rxg6 {[%clk 0:00:17]}  Rcxg6 {[%clk 0:00:42]} 42. hxg6 {[%clk 0:00:18]}  Kc4 {[%clk 0:00:43]} 43. Rd1 {[%clk 0:00:10]}  Rg2+ {[%clk 0:00:43]} 44. Kc1 {[%clk 0:00:11]}  Kb3 {[%clk 0:00:43]} 45. e4 {[%clk 0:00:00]}  Ra2 {[%clk 0:00:42]} 0-1


[Site "https://www.chess.com"]

[Event "Titled Tuesday Blitz August 15 Early 2023"]
[White "Ezat, Mohamed"]
[Black "Lagarde, Maxime"]
[WhiteFideId "10600906"]
[BlackFideId "662399"]
[WhiteElo "2625"]
[BlackElo "2833"]
[Result "0-1"]
[Round "5"]
[TimeControl "180+1"]
[Date "2023.08.15"]
[WhiteClock "0:00:22"]
[BlackClock "0:01:51"]
[Board "44"]

1. d4 {[%clk 0:02:53]}  Nc6 {[%clk 0:03:00]} 2. Nf3 {[%clk 0:02:47]}  d6 {[%clk 0:03:00]} 3. c4 {[%clk 0:02:44]}  Nf6 {[%clk 0:03:00]} 4. Nc3 {[%clk 0:02:43]}  g6 {[%clk 0:03:00]} 5. e4 {[%clk 0:02:41]}  Bg7 {[%clk 0:03:00]} 6. d5 {[%clk 0:02:41]}  Nb8 {[%clk 0:03:00]} 7. Be2 {[%clk 0:02:41]}  O-O {[%clk 0:03:01]} 8. Bg5 {[%clk 0:02:41]}  a5 {[%clk 0:03:00]} 9. O-O {[%clk 0:02:38]}  Na6 {[%clk 0:03:00]} 10. e5 {[%clk 0:02:32]}  dxe5 {[%clk 0:03:00]} 11. Nxe5 {[%clk 0:02:31]}  Nc5 {[%clk 0:02:57]} 12. Bf3 {[%clk 0:02:22]}  Bf5 {[%clk 0:02:57]} 13. g4 {[%clk 0:01:54]}  Nfe4 {[%clk 0:02:47]} 14. gxf5 {[%clk 0:01:34]}  Nxg5 {[%clk 0:02:44]} 15. Re1 {[%clk 0:01:26]}  gxf5 {[%clk 0:02:34]} 16. h4 {[%clk 0:01:23]}  Nh3+ {[%clk 0:02:17]} 17. Kh2 {[%clk 0:01:10]}  Nxf2 {[%clk 0:02:09]} 18. Qe2 {[%clk 0:01:09]}  Nfe4 {[%clk 0:02:05]} 19. Rg1 {[%clk 0:01:04]}  Qd6 {[%clk 0:02:04]} 20. Bxe4 {[%clk 0:00:51]}  Qxe5+ {[%clk 0:01:59]} 21. Rg3 {[%clk 0:00:50]}  Nxe4 {[%clk 0:01:59]} 22. Nxe4 {[%clk 0:00:44]}  fxe4 {[%clk 0:01:59]} 23. Rg1 {[%clk 0:00:39]}  Kh8 {[%clk 0:01:59]} 24. Kh3 {[%clk 0:00:35]}  Qf5+ {[%clk 0:01:55]} 25. Qg4 {[%clk 0:00:27]}  Qxg4+ {[%clk 0:01:55]} 26. Rxg4 {[%clk 0:00:27]}  Bxb2 {[%clk 0:01:54]} 27. Rxe4 {[%clk 0:00:28]}  Ba3 {[%clk 0:01:53]} 28. Re5 {[%clk 0:00:26]}  Bd6 {[%clk 0:01:51]} 29. Rh5 {[%clk 0:00:27]}  Rg8 {[%clk 0:01:51]} 30. Rgg5 {[%clk 0:00:26]}  Rxg5 {[%clk 0:01:50]} 31. hxg5 {[%clk 0:00:27]}  Kg7 {[%clk 0:01:50]} 32. Kg4 {[%clk 0:00:27]}  a4 {[%clk 0:01:50]} 33. Kf5 {[%clk 0:00:27]}  a3 {[%clk 0:01:50]} 34. Ke4 {[%clk 0:00:27]}  Ra4 {[%clk 0:01:50]} 35. Kd3 {[%clk 0:00:27]}  Rb4 {[%clk 0:01:50]} 36. Rh2 {[%clk 0:00:26]}  Rb2 {[%clk 0:01:50]} 37. Rxb2 {[%clk 0:00:22]}  axb2 {[%clk 0:01:51]} 0-1


[Site "https://www.chess.com"]

[Event "Titled Tuesday Blitz August 15 Early 2023"]
[White "Nenezic, Marko"]
[Black "Pax-Pramana"]
[WhiteFideId "912123"]
[WhiteElo "2833"]
[BlackElo "2618"]
[Result "1-0"]
[Round "5"]
[TimeControl "180+1"]
[Date "2023.08.15"]
[WhiteClock "0:00:18"]
[BlackClock "0:00:01"]
[Board "45"]

1. Nf3 {[%clk 0:03:00]}  Nf6 {[%clk 0:02:59]} 2. g3 {[%clk 0:03:00]}  b5 {[%clk 0:02:58]} 3. Bg2 {[%clk 0:02:57]}  Bb7 {[%clk 0:02:58]} 4. d4 {[%clk 0:02:57]}  e6 {[%clk 0:02:55]} 5. Qd3 {[%clk 0:02:56]}  a6 {[%clk 0:02:51]} 6. a4 {[%clk 0:02:49]}  Nc6 {[%clk 0:02:34]} 7. c3 {[%clk 0:02:39]}  Rb8 {[%clk 0:02:22]} 8. O-O {[%clk 0:02:29]}  Be7 {[%clk 0:02:18]} 9. e4 {[%clk 0:02:29]}  Ba8 {[%clk 0:02:06]} 10. axb5 {[%clk 0:02:26]}  axb5 {[%clk 0:02:07]} 11. b4 {[%clk 0:02:18]}  O-O {[%clk 0:02:00]} 12. Bg5 {[%clk 0:02:13]}  d6 {[%clk 0:01:54]} 13. Nbd2 {[%clk 0:02:12]}  h6 {[%clk 0:01:53]} 14. Bxf6 {[%clk 0:02:09]}  Bxf6 {[%clk 0:01:54]} 15. h4 {[%clk 0:02:01]}  Qd7 {[%clk 0:01:48]} 16. Ra3 {[%clk 0:01:57]}  Ne7 {[%clk 0:01:41]} 17. Rfa1 {[%clk 0:01:51]}  Rfd8 {[%clk 0:01:33]} 18. Qe3 {[%clk 0:01:45]}  e5 {[%clk 0:01:33]} 19. d5 {[%clk 0:01:29]}  c6 {[%clk 0:01:33]} 20. Ra7 {[%clk 0:01:29]}  Qc8 {[%clk 0:01:24]} 21. c4 {[%clk 0:01:11]}  bxc4 {[%clk 0:00:50]} 22. Nxc4 {[%clk 0:01:12]}  Bb7 {[%clk 0:00:49]} 23. Qb6 {[%clk 0:01:04]}  Ra8 {[%clk 0:00:32]} 24. Kh2 {[%clk 0:00:51]}  Rxa7 {[%clk 0:00:21]} 25. Rxa7 {[%clk 0:00:52]}  Rd7 {[%clk 0:00:18]} 26. Bh3 {[%clk 0:00:50]}  cxd5 {[%clk 0:00:11]} 27. Bxd7 {[%clk 0:00:42]}  Qxc4 {[%clk 0:00:10]} 28. Rxb7 {[%clk 0:00:32]}  dxe4 {[%clk 0:00:10]} 29. Nd2 {[%clk 0:00:29]}  Qe2 {[%clk 0:00:11]} 30. Qe3 {[%clk 0:00:26]}  Qd1 {[%clk 0:00:10]} 31. Nxe4 {[%clk 0:00:19]}  Nd5 {[%clk 0:00:06]} 32. Nxf6+ {[%clk 0:00:19]}  Nxf6 {[%clk 0:00:07]} 33. Bf5 {[%clk 0:00:18]}  g6 {[%clk 0:00:06]} 34. Qxh6 {[%clk 0:00:18]}  Ne8 {[%clk 0:00:01]} 35. Rb8 {[%clk 0:00:18]} 1-0


[Site "https://www.chess.com"]

[Event "Titled Tuesday Blitz August 15 Early 2023"]
[White "Salinas Herrera, Pablo"]
[Black "Ibadov, Dashgyn"]
[WhiteFideId "3407128"]
[BlackFideId "24107514"]
[WhiteElo "2823"]
[BlackElo "2609"]
[Result "1-0"]
[Round "5"]
[TimeControl "180+1"]
[Date "2023.08.15"]
[WhiteClock "0:00:07"]
[BlackClock "0:00:00"]
[Board "47"]

1. d4 {[%clk 0:03:00]}  Nf6 {[%clk 0:02:59]} 2. Nf3 {[%clk 0:02:58]}  d5 {[%clk 0:02:59]} 3. Bf4 {[%clk 0:02:57]}  c5 {[%clk 0:02:58]} 4. e3 {[%clk 0:02:58]}  Nc6 {[%clk 0:02:58]} 5. c3 {[%clk 0:02:55]}  Qb6 {[%clk 0:02:57]} 6. Qc2 {[%clk 0:02:53]}  g6 {[%clk 0:02:51]} 7. Nbd2 {[%clk 0:02:51]}  Bg7 {[%clk 0:02:48]} 8. Be2 {[%clk 0:02:49]}  O-O {[%clk 0:02:47]} 9. O-O {[%clk 0:02:49]}  Bf5 {[%clk 0:02:47]} 10. Qb3 {[%clk 0:02:50]}  c4 {[%clk 0:02:28]} 11. Qa3 {[%clk 0:02:50]}  Qd8 {[%clk 0:02:23]} 12. b3 {[%clk 0:02:48]}  b5 {[%clk 0:02:21]} 13. bxc4 {[%clk 0:02:47]}  bxc4 {[%clk 0:02:22]} 14. Ne5 {[%clk 0:02:42]}  Nxe5 {[%clk 0:02:20]} 15. Bxe5 {[%clk 0:02:43]}  Ne4 {[%clk 0:02:17]} 16. Bxg7 {[%clk 0:02:40]}  Kxg7 {[%clk 0:02:18]} 17. Nxe4 {[%clk 0:02:39]}  Bxe4 {[%clk 0:02:19]} 18. f3 {[%clk 0:02:35]}  Bf5 {[%clk 0:02:19]} 19. g4 {[%clk 0:02:30]}  Bd7 {[%clk 0:01:59]} 20. Rab1 {[%clk 0:02:30]}  Qc7 {[%clk 0:01:45]} 21. f4 {[%clk 0:02:14]}  a5 {[%clk 0:01:34]} 22. Qxe7 {[%clk 0:01:16]}  Rae8 {[%clk 0:01:32]} 23. Qg5 {[%clk 0:00:46]}  Rxe3 {[%clk 0:01:20]} 24. Rf2 {[%clk 0:00:46]}  Rfe8 {[%clk 0:01:15]} 25. Bf1 {[%clk 0:00:40]}  Rxc3 {[%clk 0:00:55]} 26. Qxd5 {[%clk 0:00:33]}  Bxg4 {[%clk 0:00:52]} 27. Rb7 {[%clk 0:00:32]}  Rd8 {[%clk 0:00:48]} 28. Rxc7 {[%clk 0:00:22]}  Rxd5 {[%clk 0:00:48]} 29. Bxc4 {[%clk 0:00:23]}  Rxd4 {[%clk 0:00:44]} 30. Rxf7+ {[%clk 0:00:20]}  Kh6 {[%clk 0:00:44]} 31. Bb3 {[%clk 0:00:18]}  a4 {[%clk 0:00:42]} 32. Bc2 {[%clk 0:00:12]}  Rdc4 {[%clk 0:00:36]} 33. h3 {[%clk 0:00:08]}  Bh5 {[%clk 0:00:28]} 34. Bxg6 {[%clk 0:00:01]}  Bxg6 {[%clk 0:00:23]} 35. Ra7 {[%clk 0:00:02]}  Rc1+ {[%clk 0:00:14]} 36. Kg2 {[%clk 0:00:02]}  R1c2 {[%clk 0:00:15]} 37. Ra5 {[%clk 0:00:02]}  Rxf2+ {[%clk 0:00:14]} 38. Kxf2 {[%clk 0:00:03]}  Rxf4+ {[%clk 0:00:15]} 39. Kg3 {[%clk 0:00:04]}  Rc4 {[%clk 0:00:15]} 40. h4 {[%clk 0:00:04]}  Bb1 {[%clk 0:00:09]} 41. a3 {[%clk 0:00:04]}  Rc3+ {[%clk 0:00:09]} 42. Kg4 {[%clk 0:00:04]}  Rxa3 {[%clk 0:00:10]} 43. Ra6+ {[%clk 0:00:05]}  Kg7 {[%clk 0:00:10]} 44. Kg5 {[%clk 0:00:05]}  h6+ {[%clk 0:00:07]} 45. Kf4 {[%clk 0:00:04]}  Bc2 {[%clk 0:00:06]} 46. Ra7+ {[%clk 0:00:04]}  Kg6 {[%clk 0:00:06]} 47. Kg4 {[%clk 0:00:04]}  Bd1+ {[%clk 0:00:06]} 48. Kf4 {[%clk 0:00:05]}  Rc3 {[%clk 0:00:06]} 49. Ra5 {[%clk 0:00:04]}  a3 {[%clk 0:00:06]} 50. Ra6+ {[%clk 0:00:02]}  Kh5 {[%clk 0:00:06]} 51. Ra7 {[%clk 0:00:01]}  Kxh4 {[%clk 0:00:03]} 52. Ra6 {[%clk 0:00:01]}  h5 {[%clk 0:00:03]} 53. Ra5 {[%clk 0:00:02]}  Bg4 {[%clk 0:00:03]} 54. Ra4 {[%clk 0:00:02]}  Rb3 {[%clk 0:00:03]} 55. Ra5 {[%clk 0:00:03]}  Kh3 {[%clk 0:00:04]} 56. Kg5 {[%clk 0:00:03]}  h4 {[%clk 0:00:04]} 57. Ra4 {[%clk 0:00:04]}  Rg3 {[%clk 0:00:02]} 58. Kh6 {[%clk 0:00:04]}  Bd1 {[%clk 0:00:02]} 59. Ra5 {[%clk 0:00:03]}  Kg2 {[%clk 0:00:01]} 60. Ra4 {[%clk 0:00:03]}  h3 {[%clk 0:00:02]} 61. Rd4 {[%clk 0:00:02]}  h2 {[%clk 0:00:02]} 62. Rd2+ {[%clk 0:00:03]}  Kh3 {[%clk 0:00:02]} 63. Rxd1 {[%clk 0:00:04]}  Rg1 {[%clk 0:00:03]} 64. Rd3+ {[%clk 0:00:05]}  Kg4 {[%clk 0:00:03]} 65. Rxa3 {[%clk 0:00:05]}  h1=Q+ {[%clk 0:00:03]} 66. Kg6 {[%clk 0:00:06]}  Kh4+ {[%clk 0:00:04]} 67. Kf6 {[%clk 0:00:06]}  Qc6+ {[%clk 0:00:04]} 68. Ke5 {[%clk 0:00:06]}  Rg5+ {[%clk 0:00:04]} 69. Kf4 {[%clk 0:00:07]}  Qf6+ {[%clk 0:00:04]} 70. Ke4 {[%clk 0:00:07]}  Rd5 {[%clk 0:00:04]} 71. Kxd5 {[%clk 0:00:07]}  Qf5+ {[%clk 0:00:04]} 72. Kc4 {[%clk 0:00:08]}  Qe4+ {[%clk 0:00:05]} 73. Kb5 {[%clk 0:00:08]}  Qb7+ {[%clk 0:00:04]} 74. Kc4 {[%clk 0:00:08]}  Kg5 {[%clk 0:00:04]} 75. Ra5+ {[%clk 0:00:08]}  Kf4 {[%clk 0:00:05]} 76. Rd5 {[%clk 0:00:08]}  Ke4 {[%clk 0:00:05]} 77. Rd2 {[%clk 0:00:07]}  Qc6+ {[%clk 0:00:05]} 78. Kb3 {[%clk 0:00:08]}  Ke3 {[%clk 0:00:04]} 79. Rc2 {[%clk 0:00:08]}  Qb5+ {[%clk 0:00:04]} 80. Kc3 {[%clk 0:00:08]}  Qc5+ {[%clk 0:00:03]} 81. Kb3 {[%clk 0:00:09]}  Qd5+ {[%clk 0:00:03]} 82. Kb4 {[%clk 0:00:09]}  Kd3 {[%clk 0:00:02]} 83. Rc3+ {[%clk 0:00:09]}  Kd4 {[%clk 0:00:02]} 84. Rc2 {[%clk 0:00:10]}  Qb7+ {[%clk 0:00:02]} 85. Ka3 {[%clk 0:00:10]}  Qb6 {[%clk 0:00:02]} 86. Rb2 {[%clk 0:00:10]}  Qa5+ {[%clk 0:00:01]} 87. Kb3 {[%clk 0:00:11]}  Qb5+ {[%clk 0:00:02]} 88. Ka3 {[%clk 0:00:11]}  Qa5+ {[%clk 0:00:01]} 89. Kb3 {[%clk 0:00:12]}  Qc3+ {[%clk 0:00:02]} 90. Ka2 {[%clk 0:00:09]}  Kc4 {[%clk 0:00:03]} 91. Kb1 {[%clk 0:00:09]}  Qe1+ {[%clk 0:00:02]} 92. Ka2 {[%clk 0:00:10]}  Qd1 {[%clk 0:00:02]} 93. Rb1 {[%clk 0:00:09]}  Qc2+ {[%clk 0:00:02]} 94. Rb2 {[%clk 0:00:09]}  Qa4+ {[%clk 0:00:03]} 95. Kb1 {[%clk 0:00:10]}  Kc3 {[%clk 0:00:03]} 96. Rf2 {[%clk 0:00:07]}  Qb5+ {[%clk 0:00:00]} 97. Kc1 {[%clk 0:00:07]} 1-0


[Site "https://www.chess.com"]

[Event "Titled Tuesday Blitz August 15 Early 2023"]
[White "Maksimovic, Bojan"]
[Black "Di Nicolantonio, Lucas"]
[WhiteFideId "14408120"]
[BlackFideId "680460"]
[WhiteElo "2821"]
[BlackElo "2587"]
[Result "0-1"]
[Round "5"]
[TimeControl "180+1"]
[Date "2023.08.15"]
[WhiteClock "0:00:00"]
[BlackClock "0:02:15"]
[Board "48"]

1. e4 {[%clk 0:03:00]}  c6 {[%clk 0:03:00]} 2. d4 {[%clk 0:02:58]}  d5 {[%clk 0:03:01]} 3. Nc3 {[%clk 0:02:58]}  dxe4 {[%clk 0:03:01]} 4. Nxe4 {[%clk 0:02:59]}  Nf6 {[%clk 0:03:02]} 5. Nxf6+ {[%clk 0:03:00]}  exf6 {[%clk 0:03:03]} 6. c3 {[%clk 0:03:00]}  Bd6 {[%clk 0:03:03]} 7. Bd3 {[%clk 0:03:01]}  O-O {[%clk 0:03:04]} 8. Qc2 {[%clk 0:03:02]}  Re8+ {[%clk 0:03:04]} 9. Ne2 {[%clk 0:03:02]}  h5 {[%clk 0:03:05]} 10. O-O {[%clk 0:03:03]}  h4 {[%clk 0:03:05]} 11. h3 {[%clk 0:03:03]}  Nd7 {[%clk 0:03:05]} 12. Bd2 {[%clk 0:03:03]}  Nf8 {[%clk 0:03:05]} 13. Rae1 {[%clk 0:03:04]}  Bc7 {[%clk 0:03:04]} 14. f4 {[%clk 0:02:59]}  Qd6 {[%clk 0:03:02]} 15. c4 {[%clk 0:02:57]}  b6 {[%clk 0:03:02]} 16. c5 {[%clk 0:02:47]}  bxc5 {[%clk 0:02:59]} 17. dxc5 {[%clk 0:02:48]}  Qd5 {[%clk 0:02:48]} 18. Qc4 {[%clk 0:02:38]}  Rd8 {[%clk 0:02:19]} 19. Qxd5 {[%clk 0:02:19]}  Rxd5 {[%clk 0:02:20]} 20. Be4 {[%clk 0:02:04]}  Rxd2 {[%clk 0:02:17]} 21. Bxc6 {[%clk 0:01:55]}  Rb8 {[%clk 0:02:17]} 22. b3 {[%clk 0:00:00]}  Ba6 {[%clk 0:02:15]} 0-1


[Site "https://www.chess.com"]

[Event "Titled Tuesday Blitz August 15 Early 2023"]
[White "MaryanKyrychenko"]
[Black "Klukin, Kirill"]
[BlackFideId "24199273"]
[WhiteElo "2561"]
[BlackElo "2817"]
[Result "1/2-1/2"]
[Round "5"]
[TimeControl "180+1"]
[Date "2023.08.15"]
[WhiteClock "0:00:13"]
[BlackClock "0:00:25"]
[Board "49"]

1. e4 {[%clk 0:03:00]}  c5 {[%clk 0:02:59]} 2. Nc3 {[%clk 0:03:00]}  g6 {[%clk 0:02:58]} 3. f4 {[%clk 0:03:00]}  Bg7 {[%clk 0:02:58]} 4. Nf3 {[%clk 0:03:00]}  Nc6 {[%clk 0:02:59]} 5. Bb5 {[%clk 0:03:00]}  Nd4 {[%clk 0:02:59]} 6. O-O {[%clk 0:03:01]}  a6 {[%clk 0:02:53]} 7. Bc4 {[%clk 0:03:00]}  e6 {[%clk 0:02:54]} 8. d3 {[%clk 0:03:00]}  Ne7 {[%clk 0:02:54]} 9. a3 {[%clk 0:02:54]}  O-O {[%clk 0:02:51]} 10. e5 {[%clk 0:02:51]}  d6 {[%clk 0:02:39]} 11. exd6 {[%clk 0:02:47]}  Qxd6 {[%clk 0:02:39]} 12. Ne4 {[%clk 0:02:47]}  Qc7 {[%clk 0:02:40]} 13. c3 {[%clk 0:02:43]}  Nxf3+ {[%clk 0:02:34]} 14. Qxf3 {[%clk 0:02:44]}  b5 {[%clk 0:02:21]} 15. Ba2 {[%clk 0:02:39]}  Bb7 {[%clk 0:02:22]} 16. Qf2 {[%clk 0:02:25]}  c4 {[%clk 0:02:19]} 17. Nc5 {[%clk 0:02:18]}  cxd3 {[%clk 0:01:54]} 18. Nxd3 {[%clk 0:02:19]}  Rfd8 {[%clk 0:01:54]} 19. Ne5 {[%clk 0:02:17]}  Nf5 {[%clk 0:01:48]} 20. Re1 {[%clk 0:02:04]}  Bf8 {[%clk 0:01:48]} 21. b4 {[%clk 0:01:47]}  h5 {[%clk 0:01:34]} 22. Bb2 {[%clk 0:01:37]}  Bd5 {[%clk 0:01:29]} 23. c4 {[%clk 0:01:32]}  bxc4 {[%clk 0:01:24]} 24. Rac1 {[%clk 0:01:32]}  a5 {[%clk 0:01:01]} 25. Bxc4 {[%clk 0:01:27]}  Qb7 {[%clk 0:01:01]} 26. bxa5 {[%clk 0:01:14]}  Rxa5 {[%clk 0:00:57]} 27. Bd3 {[%clk 0:01:02]}  Rc8 {[%clk 0:00:48]} 28. Bxf5 {[%clk 0:01:01]}  exf5 {[%clk 0:00:40]} 29. Rxc8 {[%clk 0:00:36]}  Qxc8 {[%clk 0:00:40]} 30. Rc1 {[%clk 0:00:31]}  Rc5 {[%clk 0:00:40]} 31. Rxc5 {[%clk 0:00:24]}  Bxc5 {[%clk 0:00:41]} 32. Bd4 {[%clk 0:00:24]}  Bxa3 {[%clk 0:00:29]} 33. h3 {[%clk 0:00:21]}  Qb7 {[%clk 0:00:26]} 34. Qh4 {[%clk 0:00:17]}  Be7 {[%clk 0:00:18]} 35. Qf2 {[%clk 0:00:14]}  Be4 {[%clk 0:00:17]} 36. Kh2 {[%clk 0:00:14]}  Qd5 {[%clk 0:00:17]} 37. Ba1 {[%clk 0:00:11]}  Bc5 {[%clk 0:00:16]} 38. Qb2 {[%clk 0:00:10]}  Qd1 {[%clk 0:00:07]} 39. Nf3 {[%clk 0:00:09]}  Kf8 {[%clk 0:00:05]} 40. Qb8+ {[%clk 0:00:06]}  Ke7 {[%clk 0:00:02]} 41. Qe5+ {[%clk 0:00:06]}  Kd7 {[%clk 0:00:03]} 42. Qxc5 {[%clk 0:00:06]}  Bxf3 {[%clk 0:00:03]} 43. Qb5+ {[%clk 0:00:04]}  Bc6 {[%clk 0:00:02]} 44. Qe5 {[%clk 0:00:03]}  Qc2 {[%clk 0:00:02]} 45. Qd4+ {[%clk 0:00:04]}  Kc8 {[%clk 0:00:02]} 46. Qg1 {[%clk 0:00:02]}  Qe4 {[%clk 0:00:03]} 47. Be5 {[%clk 0:00:02]}  h4 {[%clk 0:00:03]} 48. Qf2 {[%clk 0:00:02]}  Kd7 {[%clk 0:00:04]} 49. Qd4+ {[%clk 0:00:02]}  Kc8 {[%clk 0:00:04]} 50. Qxe4 {[%clk 0:00:02]}  Bxe4 {[%clk 0:00:05]} 51. Bf6 {[%clk 0:00:02]}  Kd7 {[%clk 0:00:06]} 52. Bxh4 {[%clk 0:00:03]}  Ke6 {[%clk 0:00:07]} 53. Bd8 {[%clk 0:00:03]}  Kd5 {[%clk 0:00:08]} 54. Bc7 {[%clk 0:00:03]}  Bd3 {[%clk 0:00:08]} 55. Be5 {[%clk 0:00:04]}  Ke4 {[%clk 0:00:09]} 56. g3 {[%clk 0:00:04]}  Be2 {[%clk 0:00:10]} 57. h4 {[%clk 0:00:05]}  Kf3 {[%clk 0:00:10]} 58. Bd6 {[%clk 0:00:05]}  Kg4 {[%clk 0:00:11]} 59. Bb8 {[%clk 0:00:05]}  Bc4 {[%clk 0:00:12]} 60. Bc7 {[%clk 0:00:05]}  Be6 {[%clk 0:00:12]} 61. Bb8 {[%clk 0:00:06]}  Kf3 {[%clk 0:00:13]} 62. Bc7 {[%clk 0:00:07]}  Ke4 {[%clk 0:00:14]} 63. Bb8 {[%clk 0:00:07]}  Kd5 {[%clk 0:00:15]} 64. Bc7 {[%clk 0:00:08]}  Bd7 {[%clk 0:00:15]} 65. Bb8 {[%clk 0:00:08]}  Ba4 {[%clk 0:00:16]} 66. Be5 {[%clk 0:00:09]}  Bd1 {[%clk 0:00:17]} 67. Bb8 {[%clk 0:00:09]}  Kc6 {[%clk 0:00:18]} 68. Be5 {[%clk 0:00:09]}  Kd7 {[%clk 0:00:18]} 69. Bb8 {[%clk 0:00:10]}  Ke6 {[%clk 0:00:19]} 70. Bc7 {[%clk 0:00:10]}  Bc2 {[%clk 0:00:20]} 71. Bb8 {[%clk 0:00:11]}  f6 {[%clk 0:00:20]} 72. Bc7 {[%clk 0:00:11]}  Kf7 {[%clk 0:00:21]} 73. Bb8 {[%clk 0:00:11]}  Kg7 {[%clk 0:00:22]} 74. Bc7 {[%clk 0:00:12]}  Kh6 {[%clk 0:00:22]} 75. Bd8 {[%clk 0:00:12]}  Kg7 {[%clk 0:00:23]} 76. Be7 {[%clk 0:00:12]}  Bd1 {[%clk 0:00:23]} 77. Bd8 {[%clk 0:00:12]}  Bg4 {[%clk 0:00:24]} 78. Bc7 {[%clk 0:00:13]}  Kf7 {[%clk 0:00:25]} 79. Ba5 {[%clk 0:00:13]}  Ke6 {[%clk 0:00:26]} 80. Bc3 {[%clk 0:00:13]}  Kf7 {[%clk 0:00:25]} 1/2-1/2


[Site "https://www.chess.com"]